bitfinex-derivatives/quotes_ETHF0:USTF0_20250923
["timestamp","ask_amount","ask_price","bid_price","bid_amount"]
[1758664184321,1.71500246,4184.8,4184.7,2.37455974]
[1758664186527,1.71500246,4184.8,4184.7,0.67301]
[1758664187021,1.71500246,4184.8,4184.7,0.243]
[1758664187220,1.71500246,4184.8,4184.7,2.37455974]
[1758664189330,1.71500246,4184.8,4184.7,0.67301]
[1758664189625,1.71500246,4184.8,4184.7,2.37455974]
[1758664194535,1.71500246,4184.8,4184.7,0.67301]
[1758664194928,1.28500246,4184.8,4184.7,0.67301]
[1758664195130,0.1229,4186.0,4185.4,0.42993]
[1758664195131,0.459,4185.5,4185.4,0.42993]
[1758664195329,0.1229,4186.0,4185.9,0.42988]
[1758664195536,3.2078,4186.3,4186.2,0.42985]
[1758664195833,3.2078,4186.3,4186.2,0.67285]
[1758664196134,0.459,4186.5,4186.4,0.42983]
[1758664196330,0.459,4186.5,4186.4,0.67283]
[1758664196741,0.459,4186.5,4186.4,5.67283]
[1758664197040,3.6735,4187.0,4186.9,0.42978]
[1758664197227,3.8873,4187.0,4186.9,0.42978]
[1758664197729,3.8873,4187.0,4186.8,0.243]
[1758664197930,0.2232,4186.9,4186.8,0.243]
[1758664198130,0.7703,4186.9,4186.8,0.243]
[1758664204851,1.20008,4186.9,4186.8,0.243]
[1758664205146,0.42981,4186.6,4186.5,0.42982]
[1758664205346,0.86681,4186.6,4186.5,0.42982]
[1758664205549,1.20011,4186.6,4186.5,0.42982]
[1758664205748,1.20011,4186.6,4186.5,2.13136974]
[1758664207049,0.7703,4186.6,4186.5,2.13136974]
[1758664207649,1.20011,4186.6,4186.5,2.13136974]
[1758664221261,1.19114769,4186.6,4186.5,2.13136974]
[1758664229060,1.19114769,4186.6,4186.5,2.37336974]
[1758664235966,1.19114769,4186.6,4186.5,0.67182]
[1758664236167,1.19114769,4186.6,4186.5,2.37336974]
[1758664236370,0.76311,4186.6,4186.5,2.37336974]
[1758664236564,1.20561,4186.6,4186.5,2.37336974]
[1758664245371,0.7758,4186.6,4186.5,2.37336974]
[1758664247687,0.7758,4186.6,4186.5,0.67182]
[1758664247878,0.7758,4186.6,4186.5,2.37336974]
[1758664249278,1.20561,4186.6,4186.5,2.37336974]
[1758664253781,1.20561,4186.6,4186.5,0.67182]
[1758664254079,1.20561,4186.6,4186.5,2.37336974]
[1758664260285,1.20561,4186.6,4186.5,0.67182]
[1758664260483,1.20561,4186.6,4186.5,2.37336974]
[1758664265489,1.20561,4186.6,4186.5,0.67182]
[1758664265786,1.20561,4186.6,4186.5,2.37336974]
[1758664272887,1.20561,4186.6,4186.5,0.67182]
[1758664273088,1.20561,4186.6,4186.5,2.37336974]
[1758664275594,1.20561,4186.6,4186.5,0.67182]
[1758664275887,0.7758,4186.6,4186.5,2.37336974]
[1758664286185,0.7758,4186.6,4186.5,0.67182]
[1758664286387,0.7758,4186.6,4186.5,2.37336974]
[1758664287495,0.7758,4186.6,4186.5,0.67182]
[1758664287704,0.748,4186.2,4186.0,5.33293485]
[1758664287897,1.17786,4186.1,4186.0,3.2078]
[1758664288200,1.70162153,4186.1,4186.0,3.2078]
[1758664288387,6.70162153,4186.1,4185.8,0.242]
[1758664288591,1.17788,4185.9,4185.8,0.242]
[1758664289499,0.86571,4185.6,4185.5,3.2078]
[1758664289705,1.17791,4185.6,4185.5,3.2078]
[1758664293004,1.17791,4185.6,4185.5,3.63772]
[1758664294001,1.17791,4185.6,4185.5,3.2078]
[1758664294198,1.17791,4185.6,4185.5,3.63772]
[1758664308415,0.74211,4185.6,4185.5,3.63772]
[1758664309709,0.3122,4185.6,4185.5,3.63772]
[1758664310018,0.5285,4185.6,4185.5,3.63772]
[1758664312513,0.3122,4185.6,4185.5,5.58126974]
[1758664318719,0.7328,4185.6,4185.5,3.87972]
[1758664318920,0.3122,4185.6,4185.5,3.87972]
[1758664319119,0.3122,4185.6,4185.5,5.58126974]
[1758664319722,0.4393,4186.5,4186.4,0.42983]
[1758664319920,0.4393,4186.5,4186.4,2.37337974]
[1758664325523,0.4393,4186.5,4186.4,0.67183]
[1758664325824,0.4393,4186.5,4186.4,2.37337974]
[1758664332628,0.1324,4187.0,4186.4,6.94354974]
[1758664332834,0.3491,4187.0,4186.9,2.13132974]
[1758664333129,0.3491,4187.0,4186.9,2.37232974]
[1758664333428,0.6734,4187.0,4186.9,2.37232974]
[1758664335934,0.4567,4187.0,4186.9,2.37232974]
[1758664336337,0.1324,4187.5,4187.4,0.42973]
[1758664336530,0.1324,4187.5,4187.4,2.37227974]
[1758664336932,0.4567,4187.5,4187.4,2.37227974]
[1758664338542,0.4567,4187.5,4187.4,7.37227974]
[1758664341832,0.6734,4187.5,4187.4,2.37227974]
[1758664342031,0.8896,4187.5,4187.4,2.37227974]
[1758664350946,0.8896,4187.5,4187.4,0.67073]
[1758664353950,0.4567,4187.5,4187.4,2.37227974]
[1758664355649,0.4567,4187.5,4187.4,0.67073]
[1758664355848,0.4567,4187.5,4187.4,2.37227974]
[1758664363844,0.6746,4187.5,4187.4,2.37227974]
[1758664366449,0.8889,4187.5,4187.4,0.67073]
[1758664368849,0.4322,4187.3,4187.2,4.91283048]
[1758664369049,0.7458,4187.3,4187.2,3.87855]
[1758664380562,0.7458,4187.3,4187.2,3.4488]
[1758664381564,0.7458,4187.3,4187.2,3.87855]
[1758664385571,1.17554,4187.3,4187.2,3.2078]
[1758664385865,1.14848,4186.9,4186.8,0.241]
[1758664388967,1.14848,4186.9,4186.8,0.67079]
[1758664389764,6.14848,4186.9,4186.8,0.241]
[1758664389963,1.14848,4186.9,4186.8,0.241]
[1758664391064,0.7187,4186.9,4186.8,0.67079]
[1758664391366,0.3085,4186.9,4186.8,0.67079]
[1758664393272,0.3085,4186.9,4186.8,5.67079]
[1758664398475,0.1229,4187.0,4186.9,0.42978]
[1758664398774,0.4312,4187.0,4186.9,2.13132974]
[1758664408183,0.4312,4187.0,4186.9,3.83636022]
[1758664408486,0.1324,4187.5,4187.4,0.42973]
[1758664408684,0.1324,4187.5,4187.4,5.58007974]
[1758664410374,0.4641,4187.5,4187.4,5.58007974]
[1758664415482,0.4641,4187.5,4187.4,3.87853]
[1758664415792,0.4641,4187.5,4187.4,5.58007974]
[1758664421394,0.5564,4188.0,4187.9,0.64608]
[1758664421597,0.5564,4188.0,4187.9,4.09488]
[1758664423495,0.8881,4188.0,4187.9,4.09488]
[1758664427802,0.8881,4188.0,4187.9,4.62268]
[1758664428601,0.8881,4188.0,4187.9,1.10128]
[1758664428804,0.8881,4188.0,4187.9,4.30908]
[1758664430699,0.8881,4188.0,4187.9,4.62268]
[1758664432998,0.1254,4188.5,4187.9,4.62268]
[1758664433205,0.6691,4188.5,4188.4,1.17383]
[1758664433393,0.6691,4188.5,4188.4,1.41483]
[1758664433793,0.8814,4188.5,4188.4,1.41483]
[1758664434797,0.8814,4188.5,4188.4,1.10123]
[1758664437798,0.8814,4188.5,4188.4,1.42613]
[1758664438197,1.41474584,4188.5,4188.4,1.42613]
[1758664440509,1.41474584,4188.5,4188.4,1.10123]
[1758664441106,3.6421,4188.8,4188.7,1.17489]
[1758664441298,3.4213,4188.8,4188.7,1.17489]
[1758664441899,3.85088,4188.8,4188.7,1.17489]
[1758664442307,2.8252961,4188.8,4188.7,1.41589]
[1758664444011,0.75116,4189.0,4188.7,1.41589]
[1758664444211,0.5351,4188.9,4188.8,1.17488]
[1758664445304,0.96465,4189.1,4189.0,0.7453]
[1758664446009,1.18545,4189.1,4189.0,0.7453]
[1758664446609,1.18545,4189.1,4189.0,1.17486]
[1758664448312,0.7559,4189.1,4189.0,1.17486]
[1758664450011,1.18545,4189.1,4189.0,1.17486]
[1758664455214,1.18545,4189.1,4189.0,0.7453]
[1758664463725,0.42958,4188.8,4188.7,0.241]
[1758664463915,0.7498,4188.8,4188.7,1.38769]
[1758664464115,0.5379,4188.8,4188.7,1.38769]
[1758664465511,0.96748,4188.8,4188.7,1.38769]
[1758664465716,1.17938,4188.8,4188.7,1.38769]
[1758664469526,1.17938,4188.8,4188.7,0.9581]
[1758664470023,0.1314,4189.0,4188.7,0.241]
[1758664470222,0.7498,4188.8,4188.7,1.38769]
[1758664489142,0.7498,4188.8,4188.7,1.3877]
[1758664491639,0.42957,4189.0,4188.8,0.42958]
[1758664491943,0.7498,4189.2,4189.1,0.7171]
[1758664492243,0.7498,4189.2,4189.1,1.14665]
[1758664493641,1.27679214,4189.2,4189.1,1.14665]
[1758664500050,1.70633214,4189.2,4189.1,1.14665]
[1758664500545,1.70633214,4189.2,4189.1,0.2015]
[1758664500739,1.18435,4189.1,4189.0,0.241]
[1758664501749,0.42957,4188.9,4188.8,0.42958]
[1758664501950,0.87027,4188.9,4188.8,0.42958]
[1758664502151,1.18437,4188.9,4188.8,0.65248]
[1758664502347,1.18437,4188.9,4188.8,0.97848]
[1758664502651,0.7548,4188.9,4188.8,0.97848]
[1758664502851,0.7548,4188.9,4188.8,1.18598]
[1758664504955,0.74365,4189.1,4189.0,0.4304]
[1758664505256,1.18435,4189.1,4189.0,0.7564]
[1758664505750,1.18435,4189.1,4189.0,0.2229]
[1758664505957,0.7548,4188.9,4188.8,0.97848]
[1758664508955,0.7548,4188.9,4188.8,0.42958]
[1758664509566,0.7548,4188.9,4188.8,0.97848]
[1758664516362,1.18437,4188.9,4188.8,0.2229]
[1758664516556,0.7476,4188.7,4188.6,0.6706]
[1758664516753,0.7476,4188.7,4188.6,1.2065]
[1758664517260,0.7476,4188.7,4188.6,0.9655]
[1758664519667,0.7476,4188.7,4188.6,0.5359]
[1758664520058,0.7476,4188.7,4188.6,0.96551]
[1758664521567,0.7476,4188.7,4188.6,1.17801]
[1758664524770,0.3108,4188.6,4188.5,0.67061]
[1758664525171,0.7398,4188.6,4188.5,0.67061]
[1758664525371,0.7398,4188.6,4188.5,1.18961]
[1758664527976,0.7398,4188.6,4188.5,1.40691]
[1758664537979,0.7398,4188.6,4188.5,1.53521]
[1758664540384,0.7398,4188.6,4188.5,1.40691]
[1758664545083,0.429,4188.3,4188.2,0.64324]
[1758664545285,0.7398,4188.3,4188.2,0.94864]
[1758664545878,0.7398,4188.3,4188.2,0.64324]
[1758664546178,0.7398,4188.3,4188.2,0.42964]
[1758664547279,0.7398,4188.3,4188.2,1.16594]
[1758664548388,0.7398,4188.3,4188.2,0.94864]
[1758664551488,1.16944,4188.3,4188.2,0.94864]
[1758664554789,0.7398,4188.3,4188.2,0.94864]
[1758664556288,0.7398,4188.3,4188.2,0.64324]
[1758664556595,0.8509,4188.0,4187.9,3.2078]
[1758664556790,0.8509,4188.0,4187.9,0.64678]
[1758664556990,0.8509,4188.0,4187.9,0.97548]
[1758664557291,1.28057,4188.0,4187.9,0.97548]
[1758664557985,0.1261,4188.0,4187.6,0.3287]
[1758664558186,0.7248,4187.7,4187.6,0.5458]
[1758664558686,1.1545,4187.7,4187.6,0.97551]
[1758664558887,1.1545,4187.7,4187.6,1.18331]
[1758664565389,4.3623,4187.7,4187.6,1.18331]
[1758664569702,4.3623,4187.7,4187.6,0.7536]
[1758664570302,4.3623,4187.7,4187.6,0.2171]
[1758664570603,4.3623,4187.7,4187.6,0.5458]
[1758664574299,4.6033,4187.7,4187.6,0.5458]
[1758664576599,4.6033,4187.7,4187.6,0.2171]
[1758664577109,0.97222,4187.5,4187.4,0.42973]
[1758664577299,1.16625,4187.3,4187.2,0.95704]
[1758664578006,1.40625,4187.3,4187.2,0.95704]
[1758664578308,1.40625,4187.3,4187.2,0.5273]
[1758664579697,0.42976,4187.1,4187.0,0.74377]
[1758664579903,1.16626,4187.1,4187.0,0.95707]
[1758664580103,1.40626,4187.1,4187.0,0.5273]
[1758664580295,0.97227,4187.0,4186.9,0.42978]
[1758664580605,0.97227,4187.0,4186.5,0.1283]
[1758664580606,0.42981,4186.6,4186.5,0.42981]
[1758664580805,1.16631,4186.6,4186.5,0.64311]
[1758664581108,1.16631,4186.6,4186.5,0.2133]
[1758664581506,0.4218,4186.2,4186.1,0.95715]
[1758664581713,1.16635,4186.2,4186.1,0.64315]
[1758664581900,1.16635,4186.2,4186.1,0.2133]
[1758664582504,1.16635,4186.2,4186.1,0.5273]
[1758664583006,0.4218,4185.9,4185.8,0.66989]
[1758664583203,0.745,4185.9,4185.8,0.96299]
[1758664583803,1.17488,4185.9,4185.8,0.5331]
[1758664584000,0.4319,4185.8,4185.5,0.75451]
[1758664584206,1.18501,4185.7,4185.6,0.5331]
[1758664584709,1.18501,4185.7,4185.6,1.17631]
[1758664585508,1.18501,4185.7,4185.6,0.7464]
[1758664587104,1.18501,4185.7,4185.6,0.2085]
[1758664587403,0.86181,4185.6,4185.5,0.42992]
[1758664587706,1.18501,4185.6,4185.5,0.42992]
[1758664588207,1.18501,4185.6,4185.5,0.63842]
[1758664588515,1.18501,4185.6,4185.5,0.96302]
[1758664589010,1.18501,4185.6,4185.5,0.5331]
[1758664589313,1.18501,4185.6,4185.5,0.96302]
[1758664589813,1.18501,4185.6,4185.5,0.5331]
[1758664591908,1.18501,4185.6,4185.5,0.2085]
[1758664592109,1.18504,4185.3,4185.2,3.9542]
[1758664592306,1.18504,4185.3,4185.2,0.7464]
[1758664593009,0.42997,4185.1,4185.0,0.42997]
[1758664593204,1.18507,4185.1,4185.0,0.5331]
[1758664593711,1.18507,4185.1,4185.0,0.96308]
[1758664594813,1.18507,4185.1,4185.0,0.5331]
[1758664595113,0.7551,4185.1,4185.0,0.96308]
[1758664595506,1.18506,4185.1,4185.0,0.96308]
[1758664597717,3.2078,4185.6,4185.5,1.29842]
[1758664598417,0.42987,4186.1,4186.0,0.8685]
[1758664598422,3.2078,4186.1,4186.0,0.8685]
[1758664599619,3.2078,4186.1,4186.0,1.29837]
[1758664600419,3.531,4186.1,4186.0,1.29837]
[1758664600916,3.9629,4186.1,4186.0,1.29837]
[1758664601118,4.39276,4186.1,4186.0,0.7464]
[1758664601318,3.9629,4186.1,4186.0,1.17627]
[1758664601920,4.39276,4186.1,4186.0,1.17627]
[1758664602119,0.7551,4185.8,4185.4,0.3246]
[1758664602318,1.42599,4185.8,4185.7,0.4299]
[1758664604821,1.18502,4185.6,4185.5,0.96302]
[1758664605022,1.18502,4185.6,4185.5,0.63842]
[1758664605413,0.42993,4185.4,4185.3,0.96304]
[1758664605617,1.18503,4185.4,4185.3,0.96304]
[1758664605815,1.18503,4185.4,4185.3,1.17634]
[1758664606011,1.18503,4185.4,4185.3,0.7464]
[1758664606317,1.18503,4185.4,4185.3,1.17634]
[1758664606318,0.7551,4185.4,4185.3,1.17634]
[1758664606523,0.241,4185.4,4185.3,1.17634]
[1758664606728,0.2153,4185.6,4185.5,0.55202]
[1758664606934,0.7795,4186.0,4185.9,1.17628]
[1758664607135,0.4563,4186.0,4185.9,1.17628]
[1758664608535,0.241,4186.0,4185.9,0.7464]
[1758664609438,0.241,4186.0,4185.9,1.17628]
[1758664610435,0.67087,4186.0,4185.9,0.7464]
[1758664610637,0.7795,4186.0,4185.9,1.17628]
[1758664611535,0.5385,4186.0,4185.9,1.17628]
[1758664611835,0.7795,4186.0,4185.9,1.17628]
[1758664612341,1.30725621,4186.0,4185.9,1.17628]
[1758664614843,0.98405621,4186.0,4185.9,1.17628]
[1758664615246,0.74305621,4186.0,4185.9,1.17628]
[1758664615441,3.2078,4186.1,4186.0,1.31407]
[1758664615945,3.2078,4186.6,4186.5,1.31402]
[1758664623645,3.7571,4186.6,4186.5,1.31402]
[1758664625849,3.9711,4186.6,4186.5,1.31402]
[1758664629949,3.9711,4186.6,4186.5,1.18732]
[1758664636159,4.40091,4186.6,4186.5,1.18732]
[1758664644269,4.92927162,4186.6,4186.5,1.18732]
[1758664648769,4.92927162,4186.6,4186.5,0.42982]
[1758664648974,1.30942,4186.5,4186.4,0.66983]
[1758664649173,1.83778162,4186.5,4186.4,0.98573]
[1758664649374,1.83778162,4186.5,4186.4,1.19143]
[1758664653089,1.83778162,4186.5,4186.4,0.7616]
[1758664654482,1.83778162,4186.5,4186.4,1.19143]
[1758664654780,1.83778162,4186.5,4186.4,1.40053]
[1758664680615,1.70638162,4186.5,4186.4,1.40053]
[1758664684915,1.70638162,4186.5,4186.4,0.9707]
[1758664685315,1.82918162,4186.5,4186.4,0.9707]
[1758664686019,1.82918162,4186.5,4186.4,1.40053]
[1758664687624,1.82918162,4186.5,4186.4,0.7616]
[1758664690131,1.82918162,4186.5,4186.4,0.7548]
[1758664694027,1.82918162,4186.5,4186.4,0.4457]
[1758664694227,1.82918162,4186.5,4186.4,0.24]
[1758664698033,1.16658,4185.9,4185.8,0.66988]
[1758664698232,1.16658,4185.9,4185.8,0.88908]
[1758664698533,1.16658,4185.9,4185.8,1.21998]
[1758664699632,0.7367,4185.9,4185.8,1.21998]
[1758664702037,0.7367,4185.9,4185.8,1.42548]
[1758664703333,0.7367,4185.9,4185.8,1.21998]
[1758664706239,0.7367,4185.9,4185.8,0.88038]
[1758664706439,0.7367,4185.9,4185.8,1.18338]
[1758664706938,0.7367,4185.9,4185.8,1.40088]
[1758664709439,0.5198,4185.9,4185.8,1.40088]
[1758664709642,0.2178,4185.9,4185.8,1.40088]
[1758664710333,0.5434,4185.9,4185.8,1.40088]
[1758664721866,0.7549,4185.9,4185.8,1.40088]
[1758664725760,0.7549,4185.9,4185.8,3.63768]
[1758664725966,0.7549,4185.9,4185.8,4.39119]
[1758664726163,0.7549,4185.9,4185.8,3.87769]
[1758664726360,0.7549,4185.9,4185.8,3.2078]
[1758664726565,1.18478,4185.9,4185.8,3.2078]
[1758664726864,6.71659901,4185.9,4185.8,3.2078]
[1758664727061,0.7567,4185.1,4185.0,0.42997]
[1758664727270,0.7567,4185.1,4184.8,3.2078]
[1758664727271,1.18669,4184.9,4184.8,3.2078]
[1758664727460,0.7567,4184.9,4184.8,3.2078]
[1758664729458,0.7567,4184.9,4184.8,3.5108]
[1758664730171,0.7567,4184.9,4184.8,3.7213]
[1758664731969,0.7567,4184.9,4184.8,3.2078]
[1758664733665,0.43,4184.8,4184.6,0.43001]
[1758664733870,1.19021,4184.7,4184.6,0.43001]
[1758664734171,1.19021,4184.7,4184.6,0.96091]
[1758664736172,1.19021,4184.7,4184.6,0.5309]
[1758664736464,0.43002,4184.6,4184.5,0.24]
[1758664736663,1.19022,4184.6,4184.5,0.24]
[1758664736862,1.19022,4184.6,4184.5,0.7709]
[1758664737969,1.19022,4184.6,4184.5,0.5309]
[1758664738167,1.07498,4184.9,4184.2,3.63785]
[1758664738168,1.19025,4184.3,4184.2,3.4131]
[1758664738369,1.19025,4184.3,4184.2,3.636]
[1758664738667,1.19025,4184.3,4184.2,3.9616]
[1758664739371,1.19025,4184.3,4184.2,0.2053]
[1758664739571,1.19027,4184.1,4184.0,1.18388]
[1758664740268,1.19027,4184.1,4184.0,0.5309]
[1758664740477,1.1903,4183.8,4183.7,3.9616]
[1758664743779,1.1903,4183.8,4183.7,0.7538]
[1758664744074,1.19033,4183.5,4183.4,0.7709]
[1758664744276,1.19033,4183.5,4183.4,0.9938]
[1758664744980,0.97103,4183.5,4183.4,0.9938]
[1758664747179,0.97103,4183.5,4183.4,1.42394]
[1758664747368,0.97103,4183.5,4183.4,1.18394]
[1758664747875,0.97103,4183.5,4183.4,0.7538]
[1758664750282,0.43016,4183.2,4183.1,0.24]
[1758664750488,1.19036,4183.2,4183.1,0.6682]
[1758664750980,0.64536,4183.2,4183.1,0.9938]
[1758664751377,0.43016,4183.2,4183.1,0.9938]
[1758664752785,1.15056,4183.2,4183.1,0.9938]
[1758664752984,0.64536,4183.2,4183.1,0.9938]
[1758664753881,0.94866,4183.2,4183.1,0.9938]
[1758664754579,0.64536,4183.2,4183.1,0.9938]
[1758664755580,0.94866,4183.2,4183.1,0.9938]
[1758664756582,1.15056,4183.2,4183.1,0.9938]
[1758664757085,1.15056,4183.2,4183.1,1.42397]
[1758664761290,0.64536,4183.2,4183.1,1.42397]
[1758664761890,1.15056,4183.2,4183.1,1.42397]
[1758664764795,0.7204,4183.2,4183.1,1.42397]
[1758664765587,3.2078,4183.7,4183.6,1.18302]
[1758664765792,3.2078,4184.2,4184.0,0.8789]
[1758664765992,0.54265614,4184.1,4184.0,1.30898]
[1758664766193,0.87215614,4184.1,4184.0,1.30898]
[1758664766393,1.07865614,4184.1,4184.0,1.30898]
[1758664767295,3.2078,4184.2,4184.1,0.7529]
[1758664767899,3.7438,4184.7,4184.6,1.18291]
[1758664768094,4.28675813,4184.7,4184.6,1.18291]
[1758664770598,3.2078,4184.7,4184.6,1.18291]
[1758664771296,0.536,4185.0,4184.9,1.18288]
[1758664771502,3.4143,4185.3,4185.2,1.18285]
[1758664771796,4.50607971,4185.3,4185.2,1.18285]
[1758664772297,3.9635,4185.3,4185.2,1.18285]
[1758664772994,3.2078,4185.3,4185.2,1.18285]
[1758664773401,3.7438,4185.8,4185.7,1.1828]
[1758664773900,3.9635,4185.8,4185.7,1.1828]
[1758664779706,0.536,4186.3,4186.2,0.7529]
[1758664780401,0.7557,4186.3,4186.2,0.7529]
[1758664780605,0.7557,4186.3,4186.2,1.18275]
[1758664781206,0.5549,4186.0,4185.9,0.24]
[1758664781509,0.4262,4185.0,4184.9,0.7529]
[1758664781699,0.7557,4185.0,4184.9,1.18288]
[1758664785300,0.8844,4185.0,4184.9,0.42998]
[1758664786900,0.8844,4185.0,4184.9,0.64808]
[1758664787102,0.8844,4185.0,4184.9,0.96458]
[1758664791214,0.536,4185.0,4184.9,1.18288]
[1758664791411,0.536,4185.0,4184.9,1.42288]
[1758664791817,0.7557,4185.0,4184.9,1.42288]
[1758664792018,0.8844,4185.0,4184.9,1.42288]
[1758664792219,0.8844,4185.0,4184.9,0.88808]
[1758664792817,0.8844,4185.0,4184.9,1.20458]
[1758664793010,0.8844,4185.0,4184.9,1.42288]
[1758664793716,0.5511,4185.5,4185.4,0.65323]
[1758664794014,1.30352,4185.5,4185.4,0.7579]
[1758664794314,1.30352,4185.5,4185.4,0.65323]
[1758664794617,1.30352,4185.5,4185.4,1.18783]
[1758664797114,0.8736,4185.5,4185.4,1.18783]
[1758664797319,1.30352,4185.5,4185.4,1.18783]
[1758664799025,1.17482,4185.5,4185.4,1.18783]
[1758664799523,1.17482,4185.5,4185.4,0.42993]
[1758664799826,1.17488,4184.9,4184.8,3.87779]
[1758664800124,1.17488,4184.9,4184.8,3.2078]
[1758664800422,1.17494,4184.4,4184.3,3.2078]
[1758664800822,0.3225,4183.8,4183.7,3.8779]
[1758664801025,0.7449,4183.8,4183.7,4.1012]
[1758664801221,0.7449,4183.8,4183.7,3.2078]
[1758664801422,0.85253,4183.5,4183.4,0.5518]
[1758664801625,0.8744,4183.5,4183.4,0.5518]
[1758664801825,0.8744,4183.5,4183.3,0.43015]
[1758664802027,0.8744,4183.5,4183.4,0.7579]
[1758664802328,0.1295,4184.0,4183.7,0.2233]
[1758664802527,0.96478,4184.0,4183.9,0.4294]
[1758664802728,0.2122,4184.0,4183.9,0.7579]
[1758664802935,0.2122,4184.2,4184.1,0.7579]
[1758664803225,0.5347,4184.6,4184.5,0.7579]
[1758664804222,0.7449,4184.6,4184.5,0.7579]
[1758664804922,0.7449,4184.5,4184.4,1.18792]
[1758664805131,0.7449,4184.5,4184.4,0.7579]
[1758664807029,0.4224,4184.4,4183.8,3.2078]
[1758664807240,0.4224,4183.9,4183.3,3.2078]
[1758664807436,1.175,4183.6,4183.5,0.2233]
[1758664807733,0.7449,4183.4,4183.3,3.2078]
[1758664807934,0.7449,4183.1,4183.0,0.7928]
[1758664808134,0.7449,4183.1,4183.0,0.9989]
[1758664808530,0.8744,4183.0,4182.9,0.02390714]
[1758664810838,0.8744,4183.0,4182.9,0.57570714]
[1758664811038,0.8744,4183.0,4182.9,0.24720714]
[1758664813938,0.8744,4183.0,4182.9,0.56110714]
[1758664814742,0.8744,4183.0,4182.9,0.24720714]
[1758664814943,1.30456,4183.0,4182.9,0.24720714]
[1758664815247,1.30456,4183.0,4182.9,0.02390714]
[1758664836267,1.84797291,4183.0,4182.9,0.02390714]
[1758664850479,1.84797291,4183.0,4182.3,3.5235]
[1758664850480,0.43024,4182.4,4182.3,3.5235]
[1758664850682,0.43024,4182.4,4182.0,0.3157]
[1758664850683,1.16614,4182.4,4182.0,0.3157]
[1758664850890,0.7359,4181.8,4181.7,3.943]
[1758664851082,0.7359,4181.8,4181.7,4.184]
[1758664851486,0.7359,4181.8,4181.7,3.943]
[1758664851684,0.7359,4181.8,4181.7,4.184]
[1758664851881,0.7359,4181.8,4181.2,1.6985923]
[1758664851882,0.3168,4181.3,4181.2,3.4488]
[1758664852186,0.7359,4181.3,4181.2,3.6582]
[1758664852487,0.7359,4181.3,4181.2,3.9739]
[1758664853193,0.7359,4181.3,4181.2,3.7329]
[1758664853583,0.7359,4181.3,4181.2,3.4172]
[1758664854183,0.7359,4181.3,4181.2,3.7306]
[1758664854586,0.7359,4181.3,4181.2,3.9716]
[1758664856690,1.16625,4181.3,4181.2,3.4488]
[1758664858586,1.16625,4181.3,4181.2,3.2078]
[1758664858986,0.85736,4181.2,4181.1,0.00991156]
[1758664859180,1.16266,4181.2,4181.1,0.00991156]
[1758664861788,0.7323,4181.2,4181.1,1.16728156]
[1758664861986,0.3053,4181.4,4181.1,0.85388156]
[1758664862183,0.95874,4181.4,4181.3,0.4136]
[1758664862389,0.95874,4181.4,4181.3,0.727]
[1758664862591,1.16264,4181.4,4181.3,0.727]
[1758664863092,1.16264,4181.4,4181.3,1.15735]
[1758664863282,0.95874,4181.4,4181.3,1.15735]
[1758664863483,0.6534,4181.9,4181.8,0.6316]
[1758664863797,0.2231,4181.9,4181.8,1.1573]
[1758664864092,3.2078,4182.0,4181.9,1.15729]
[1758664864895,0.95865,4182.4,4182.3,0.727]
[1758664865195,0.2231,4182.4,4182.3,0.727]
[1758664865498,1.20423,4183.5,4182.0,0.1294]
[1758664865499,0.3053,4182.7,4182.6,0.43022]
[1758664865685,0.7323,4182.7,4182.6,0.5147]
[1758664866194,0.7323,4182.7,4182.6,0.727]
[1758664869896,0.7323,4182.7,4182.6,0.5257]
[1758664870094,1.16256,4182.3,4182.2,0.5147]
[1758664870290,1.16256,4182.3,4181.6,3.2078]
[1758664870291,0.427,4182.2,4181.9,0.3134]
[1758664870602,1.16261,4181.7,4181.6,3.4091]
[1758664870902,1.16261,4181.7,4181.6,0.2013]
[1758664871204,3.3367,4182.0,4181.4,0.241]
[1758664871205,1.29153,4181.5,4181.4,0.241]
[1758664871592,1.16266,4181.2,4181.1,3.73241156]
[1758664872201,1.16266,4181.2,4181.1,3.21771156]
[1758664872396,1.16266,4181.2,4181.1,0.00991156]
[1758664872589,1.16266,4181.2,4180.6,3.2078]
[1758664872590,0.43041,4180.7,4180.6,3.2078]
[1758664872798,1.19157,4180.2,4180.1,0.7326]
[1758664872997,0.7611,4180.2,4180.1,0.7326]
[1758664873992,0.2204,4180.2,4180.1,0.7326]
[1758664876203,0.5474,4180.2,4180.1,0.7326]
[1758664879707,0.5474,4180.2,4180.1,1.16307]
[1758664880503,0.2204,4180.2,4180.1,1.16307]
[1758664880698,0.327,4180.4,4180.1,0.7326]
[1758664880909,0.327,4180.4,4180.3,0.7326]
[1758664881110,3.9689,4180.7,4180.6,1.16302]
[1758664881699,3.2078,4180.7,4180.6,1.16302]
[1758664881904,3.2078,4181.2,4181.1,0.7326]
[1758664882309,3.2078,4181.2,4181.1,1.16297]
[1758664888215,3.7366,4181.2,4181.1,1.16297]
[1758664892011,3.9595,4181.2,4181.1,0.43037]
[1758664892418,0.7517,4180.7,4180.6,0.43042]
[1758664892610,0.4441,4180.7,4179.9,1.07625]
[1758664892912,0.7517,4179.9,4179.8,3.87931]
[1758664893112,0.7517,4179.9,4179.8,3.2078]
[1758664893319,0.3076,4179.4,4179.2,3.87936]
[1758664893514,0.7517,4179.3,4179.2,3.87936]
[1758664893819,0.7517,4179.3,4179.2,4.08336]
[1758664894015,0.7517,4179.3,4179.2,3.2078]